[Event "Titled Tuesday Blitz April 05 Late 2022"]
[White "Fajdetic, Hrvoje"]
[Black "Derraugh, Geordie"]
[WhiteFideId "14501945"]
[BlackFideId "2603950"]
[WhiteElo "2172"]
[BlackElo "2116"]
[Result "0-1"]
[Round "03"]
[TimeControl "180+1"]
[Date "2022.04.06"]
[WhiteClock "0:00:04"]
[BlackClock "0:00:54"]

1. d4 {[%clk 0:03:00]}  Nf6 {[%clk 0:02:59]} 2. Bf4 {[%clk 0:03:00]}  c5 {[%clk 0:02:56]} 3. e3 {[%clk 0:03:00]}  cxd4 {[%clk 0:02:56]} 4. exd4 {[%clk 0:03:01]}  d5 {[%clk 0:02:54]} 5. Nc3 {[%clk 0:03:01]}  Bf5 {[%clk 0:02:55]} 6. Nb5 {[%clk 0:02:57]}  Na6 {[%clk 0:02:55]} 7. c3 {[%clk 0:02:56]}  g6 {[%clk 0:02:54]} 8. Qa4 {[%clk 0:02:46]}  Bd7 {[%clk 0:02:52]} 9. Qxa6 {[%clk 0:02:41]}  bxa6 {[%clk 0:02:50]} 10. Nc7+ {[%clk 0:02:41]}  Qxc7 {[%clk 0:02:51]} 11. Bxc7 {[%clk 0:02:42]}  Bb5 {[%clk 0:02:49]} 12. Ne2 {[%clk 0:02:34]}  Bh6 {[%clk 0:02:49]} 13. Bf4 {[%clk 0:01:55]}  Bg7 {[%clk 0:02:40]} 14. Nc1 {[%clk 0:01:49]}  Nd7 {[%clk 0:02:36]} 15. Nd3 {[%clk 0:01:43]}  f6 {[%clk 0:02:35]} 16. Kd2 {[%clk 0:01:36]}  Kf7 {[%clk 0:02:34]} 17. a4 {[%clk 0:01:22]}  Bc4 {[%clk 0:02:34]} 18. b3 {[%clk 0:01:13]}  Bxb3 {[%clk 0:02:31]} 19. Rb1 {[%clk 0:01:13]}  Bxa4 {[%clk 0:02:28]} 20. Rb7 {[%clk 0:01:12]}  Bc6 {[%clk 0:02:21]} 21. Rc7 {[%clk 0:01:12]}  Rhc8 {[%clk 0:02:22]} 22. Nb4 {[%clk 0:01:07]}  Rxc7 {[%clk 0:02:21]} 23. Bxc7 {[%clk 0:01:08]}  Bb7 {[%clk 0:02:21]} 24. Nxa6 {[%clk 0:01:02]}  Bh6+ {[%clk 0:02:15]} 25. Kc2 {[%clk 0:00:59]}  Rc8 {[%clk 0:02:15]} 26. Ba5 {[%clk 0:00:57]}  e5 {[%clk 0:02:14]} 27. Bb5 {[%clk 0:00:48]}  Nf8 {[%clk 0:01:38]} 28. Nc5 {[%clk 0:00:47]}  Ba8 {[%clk 0:01:39]} 29. Ra1 {[%clk 0:00:36]}  exd4 {[%clk 0:01:38]} 30. cxd4 {[%clk 0:00:37]}  Bf4 {[%clk 0:01:31]} 31. Bc3 {[%clk 0:00:13]}  Bb8 {[%clk 0:01:28]} 32. Ra6 {[%clk 0:00:11]}  g5 {[%clk 0:01:22]} 33. h3 {[%clk 0:00:09]}  h5 {[%clk 0:01:21]} 34. g3 {[%clk 0:00:09]}  h4 {[%clk 0:01:06]} 35. gxh4 {[%clk 0:00:07]}  gxh4 {[%clk 0:01:06]} 36. Nd7 {[%clk 0:00:08]}  Nxd7 {[%clk 0:01:04]} 37. Bxd7 {[%clk 0:00:08]}  Rd8 {[%clk 0:00:59]} 38. Bf5 {[%clk 0:00:07]}  Rd6 {[%clk 0:00:59]} 39. Ra5 {[%clk 0:00:06]}  Bc6 {[%clk 0:00:58]} 40. Bb4 {[%clk 0:00:06]}  Rd8 {[%clk 0:00:58]} 41. Ra6 {[%clk 0:00:06]}  Bd7 {[%clk 0:00:57]} 42. Bxd7 {[%clk 0:00:05]}  Rxd7 {[%clk 0:00:58]} 43. Kd3 {[%clk 0:00:04]}  Kg6 {[%clk 0:00:58]} 44. Bc5 {[%clk 0:00:04]}  Kf5 {[%clk 0:00:58]} 45. Rc6 {[%clk 0:00:04]}  Kf4 {[%clk 0:00:57]} 46. Rc8 {[%clk 0:00:04]}  Bd6 {[%clk 0:00:56]} 47. Bxd6+ {[%clk 0:00:03]}  Rxd6 {[%clk 0:00:56]} 48. Rc7 {[%clk 0:00:03]}  Ra6 {[%clk 0:00:56]} 49. Rd7 {[%clk 0:00:04]}  Kf3 {[%clk 0:00:56]} 50. Rxd5 {[%clk 0:00:03]}  Kxf2 {[%clk 0:00:56]} 51. Rf5+ {[%clk 0:00:03]}  Kg3 {[%clk 0:00:56]} 52. Ke4 {[%clk 0:00:02]}  Kxh3 {[%clk 0:00:57]} 53. d5 {[%clk 0:00:03]}  Kg4 {[%clk 0:00:57]} 54. Rf1 {[%clk 0:00:02]}  Ra4+ {[%clk 0:00:56]} 55. Kd3 {[%clk 0:00:02]}  h3 {[%clk 0:00:54]} 56. Rxf6 {[%clk 0:00:02]}  h2 {[%clk 0:00:52]} 57. Rh6 {[%clk 0:00:03]}  Ra3+ {[%clk 0:00:53]} 58. Kc4 {[%clk 0:00:03]}  Rh3 {[%clk 0:00:53]} 59. Rg6+ {[%clk 0:00:03]}  Kf5 {[%clk 0:00:53]} 60. Rf6+ {[%clk 0:00:04]}  Kxf6 {[%clk 0:00:54]} 0-1


[Site "https://www.chess.com"]

[Event "Titled Tuesday Blitz April 05 Late 2022"]
[White "Galego, Luis"]
[Black "Bortnyk, Olexandr"]
[WhiteFideId "1900072"]
[BlackFideId "14120828"]
[WhiteElo "2516"]
[BlackElo "2723"]
[Result "1-0"]
[Round "03"]
[TimeControl "180+1"]
[Date "2022.04.05"]
[WhiteClock "0:01:02"]
[BlackClock "0:00:06"]

1. e4 {[%clk 0:03:00]}  Nf6 {[%clk 0:02:58]} 2. e5 {[%clk 0:02:58]}  Nd5 {[%clk 0:02:58]} 3. Nc3 {[%clk 0:02:59]}  Nb6 {[%clk 0:02:58]} 4. Nf3 {[%clk 0:02:58]}  d5 {[%clk 0:02:59]} 5. d4 {[%clk 0:02:56]}  Bf5 {[%clk 0:02:59]} 6. a4 {[%clk 0:02:55]}  a5 {[%clk 0:02:59]} 7. Bd3 {[%clk 0:02:53]}  Bxd3 {[%clk 0:02:59]} 8. Qxd3 {[%clk 0:02:53]}  e6 {[%clk 0:03:00]} 9. O-O {[%clk 0:02:52]}  c5 {[%clk 0:02:58]} 10. Nb5 {[%clk 0:02:51]}  c4 {[%clk 0:02:58]} 11. Qe2 {[%clk 0:02:48]}  Nc6 {[%clk 0:02:58]} 12. c3 {[%clk 0:02:47]}  Qd7 {[%clk 0:02:57]} 13. Ng5 {[%clk 0:02:40]}  h6 {[%clk 0:02:56]} 14. Nh3 {[%clk 0:02:39]}  g5 {[%clk 0:02:55]} 15. f4 {[%clk 0:02:38]}  gxf4 {[%clk 0:02:47]} 16. Nxf4 {[%clk 0:02:37]}  O-O-O {[%clk 0:02:42]} 17. Nh5 {[%clk 0:02:35]}  Kb8 {[%clk 0:02:40]} 18. Nf6 {[%clk 0:02:32]}  Qc8 {[%clk 0:02:34]} 19. Bf4 {[%clk 0:02:29]}  Ka8 {[%clk 0:02:29]} 20. Bg3 {[%clk 0:02:22]}  Be7 {[%clk 0:02:24]} 21. Nd6 {[%clk 0:02:17]}  Bxd6 {[%clk 0:02:20]} 22. exd6 {[%clk 0:02:17]}  Nd7 {[%clk 0:02:11]} 23. Qh5 {[%clk 0:02:08]}  Nxf6 {[%clk 0:01:59]} 24. Rxf6 {[%clk 0:02:07]}  Rd7 {[%clk 0:02:00]} 25. Raf1 {[%clk 0:01:51]}  Qe8 {[%clk 0:01:44]} 26. Rxh6 {[%clk 0:01:50]}  Rg8 {[%clk 0:01:44]} 27. Be5 {[%clk 0:01:42]}  Ka7 {[%clk 0:01:37]} 28. h4 {[%clk 0:01:41]}  Ka6 {[%clk 0:01:36]} 29. Rh7 {[%clk 0:01:36]}  b6 {[%clk 0:01:32]} 30. Rfxf7 {[%clk 0:01:33]}  Rxf7 {[%clk 0:00:30]} 31. Qxf7 {[%clk 0:01:32]}  Qa8 {[%clk 0:00:29]} 32. Qxe6 {[%clk 0:01:28]}  Nxe5 {[%clk 0:00:29]} 33. Qxe5 {[%clk 0:01:25]}  Rg4 {[%clk 0:00:21]} 34. Qe7 {[%clk 0:01:09]}  Re4 {[%clk 0:00:22]} 35. Qd7 {[%clk 0:01:08]}  Re1+ {[%clk 0:00:05]} 36. Kf2 {[%clk 0:01:04]}  Qc6 {[%clk 0:00:06]} 37. Qa7# {[%clk 0:01:02]} 1-0


[Site "https://www.chess.com"]

[Event "Titled Tuesday Blitz April 05 Late 2022"]
[White "Garagulya, Konstantin"]
[Black "Kosteniuk, Alexandra"]
[WhiteFideId "4128931"]
[BlackFideId "4128125"]
[WhiteElo "2329"]
[BlackElo "2469"]
[Result "1/2-1/2"]
[Round "03"]
[TimeControl "180+1"]
[Date "2022.04.06"]
[WhiteClock "0:00:06"]
[BlackClock "0:00:06"]

1. d4 {[%clk 0:01:44]}  Nf6 {[%clk 0:02:58]} 2. Nf3 {[%clk 0:01:45]}  d5 {[%clk 0:02:58]} 3. c4 {[%clk 0:01:45]}  e6 {[%clk 0:02:59]} 4. Bg5 {[%clk 0:01:44]}  h6 {[%clk 0:02:58]} 5. Bh4 {[%clk 0:01:44]}  dxc4 {[%clk 0:02:58]} 6. Qa4+ {[%clk 0:01:43]}  c6 {[%clk 0:02:51]} 7. Qxc4 {[%clk 0:01:42]}  b5 {[%clk 0:02:51]} 8. Qc2 {[%clk 0:01:41]}  Qa5+ {[%clk 0:02:46]} 9. Nbd2 {[%clk 0:01:41]}  g5 {[%clk 0:02:33]} 10. Bg3 {[%clk 0:01:40]}  Bb7 {[%clk 0:02:24]} 11. e3 {[%clk 0:01:12]}  Nbd7 {[%clk 0:02:22]} 12. Be2 {[%clk 0:01:12]}  c5 {[%clk 0:02:18]} 13. O-O {[%clk 0:01:12]}  Rc8 {[%clk 0:02:10]} 14. Rfc1 {[%clk 0:00:33]}  Qd8 {[%clk 0:01:51]} 15. Qb3 {[%clk 0:00:32]}  a6 {[%clk 0:01:46]} 16. a4 {[%clk 0:00:31]}  c4 {[%clk 0:01:44]} 17. Qd1 {[%clk 0:00:31]}  Be7 {[%clk 0:01:37]} 18. Ne5 {[%clk 0:00:31]}  Nxe5 {[%clk 0:01:34]} 19. Bxe5 {[%clk 0:00:30]}  O-O {[%clk 0:01:29]} 20. axb5 {[%clk 0:00:31]}  axb5 {[%clk 0:01:29]} 21. h4 {[%clk 0:00:29]}  Nd7 {[%clk 0:01:22]} 22. hxg5 {[%clk 0:00:18]}  Nxe5 {[%clk 0:01:21]} 23. dxe5 {[%clk 0:00:19]}  hxg5 {[%clk 0:01:20]} 24. Bf3 {[%clk 0:00:20]}  Bxf3 {[%clk 0:01:12]} 25. Nxf3 {[%clk 0:00:21]}  Qxd1+ {[%clk 0:01:07]} 26. Rxd1 {[%clk 0:00:22]}  Rfd8 {[%clk 0:01:05]} 27. g4 {[%clk 0:00:22]}  Rxd1+ {[%clk 0:01:02]} 28. Rxd1 {[%clk 0:00:23]}  b4 {[%clk 0:01:02]} 29. Rc1 {[%clk 0:00:22]}  c3 {[%clk 0:00:55]} 30. bxc3 {[%clk 0:00:23]}  b3 {[%clk 0:00:56]} 31. Nd4 {[%clk 0:00:21]}  b2 {[%clk 0:00:43]} 32. Rb1 {[%clk 0:00:19]}  Rxc3 {[%clk 0:00:19]} 33. Rxb2 {[%clk 0:00:18]}  Rc5 {[%clk 0:00:19]} 34. Rb5 {[%clk 0:00:18]}  Rc1+ {[%clk 0:00:18]} 35. Kg2 {[%clk 0:00:18]}  Rc7 {[%clk 0:00:18]} 36. Kg3 {[%clk 0:00:16]}  Kg7 {[%clk 0:00:18]} 37. Kf3 {[%clk 0:00:17]}  Kg6 {[%clk 0:00:18]} 38. Ke4 {[%clk 0:00:17]}  Bc5 {[%clk 0:00:16]} 39. Ne2 {[%clk 0:00:14]}  Bf8 {[%clk 0:00:16]} 40. f4 {[%clk 0:00:14]}  gxf4 {[%clk 0:00:15]} 41. exf4 {[%clk 0:00:14]}  Rc4+ {[%clk 0:00:15]} 42. Kf3 {[%clk 0:00:13]}  Ra4 {[%clk 0:00:14]} 43. Rb3 {[%clk 0:00:13]}  Bc5 {[%clk 0:00:13]} 44. Ng3 {[%clk 0:00:14]}  Ra1 {[%clk 0:00:11]} 45. Ne4 {[%clk 0:00:14]}  Be7 {[%clk 0:00:11]} 46. Rb7 {[%clk 0:00:13]}  Bf8 {[%clk 0:00:08]} 47. Ng3 {[%clk 0:00:12]}  Ra3+ {[%clk 0:00:08]} 48. Kg2 {[%clk 0:00:12]}  Ra2+ {[%clk 0:00:08]} 49. Kh3 {[%clk 0:00:13]}  Ra3 {[%clk 0:00:08]} 50. Kh4 {[%clk 0:00:12]}  Ra4 {[%clk 0:00:08]} 51. f5+ {[%clk 0:00:09]}  exf5 {[%clk 0:00:08]} 52. Nxf5 {[%clk 0:00:10]}  Ra6 {[%clk 0:00:07]} 53. Rb5 {[%clk 0:00:08]}  Re6 {[%clk 0:00:07]} 54. Rd5 {[%clk 0:00:08]}  Ba3 {[%clk 0:00:07]} 55. Kg3 {[%clk 0:00:08]}  Bb2 {[%clk 0:00:07]} 56. Kf4 {[%clk 0:00:08]}  Bc1+ {[%clk 0:00:07]} 57. Ke4 {[%clk 0:00:08]}  Ba3 {[%clk 0:00:08]} 58. Nd4 {[%clk 0:00:08]}  Re8 {[%clk 0:00:07]} 59. Ra5 {[%clk 0:00:09]}  Bb2 {[%clk 0:00:07]} 60. Ra6+ {[%clk 0:00:09]}  Kg5 {[%clk 0:00:07]} 61. Nf3+ {[%clk 0:00:09]}  Kxg4 {[%clk 0:00:07]} 62. Rf6 {[%clk 0:00:09]}  Re7 {[%clk 0:00:06]} 63. Rf4+ {[%clk 0:00:09]}  Kh5 {[%clk 0:00:06]} 64. Rf5+ {[%clk 0:00:09]}  Kg6 {[%clk 0:00:07]} 65. Rf6+ {[%clk 0:00:09]}  Kg7 {[%clk 0:00:07]} 66. Rf5 {[%clk 0:00:09]}  Ba1 {[%clk 0:00:08]} 67. Kf4 {[%clk 0:00:09]}  Re6 {[%clk 0:00:08]} 68. Ng5 {[%clk 0:00:09]}  Re7 {[%clk 0:00:08]} 69. Nf3 {[%clk 0:00:08]}  Re6 {[%clk 0:00:08]} 70. Ng5 {[%clk 0:00:08]}  Re7 {[%clk 0:00:08]} 71. Ne4 {[%clk 0:00:08]}  Bd4 {[%clk 0:00:07]} 72. Rg5+ {[%clk 0:00:08]}  Kf8 {[%clk 0:00:05]} 73. Rh5 {[%clk 0:00:06]}  Rxe5 {[%clk 0:00:05]} 74. Rxe5 {[%clk 0:00:05]}  Bxe5+ {[%clk 0:00:06]} 75. Kxe5 {[%clk 0:00:06]}  Ke7 {[%clk 0:00:06]} 76. Kf5 {[%clk 0:00:05]}  f6 {[%clk 0:00:06]} 77. Nxf6 {[%clk 0:00:06]} 1/2-1/2


[Site "https://www.chess.com"]

[Event "Titled Tuesday Blitz April 05 Late 2022"]
[White "Gomez Dieguez, David"]
[Black "Putri, Regita Desyari"]
[WhiteFideId "22223630"]
[BlackFideId "7109083"]
[WhiteElo "2115"]
[BlackElo "1930"]
[Result "0-1"]
[Round "03"]
[TimeControl "180+1"]
[Date "2022.04.06"]
[WhiteClock "0:00:03"]
[BlackClock "0:01:19"]

1. c4 {[%clk 0:03:00]}  Nf6 {[%clk 0:02:59]} 2. Nf3 {[%clk 0:03:00]}  e6 {[%clk 0:02:58]} 3. Nc3 {[%clk 0:02:57]}  d5 {[%clk 0:02:58]} 4. e3 {[%clk 0:02:58]}  Bb4 {[%clk 0:02:57]} 5. Qc2 {[%clk 0:02:56]}  O-O {[%clk 0:02:56]} 6. a3 {[%clk 0:02:56]}  Be7 {[%clk 0:02:54]} 7. b4 {[%clk 0:02:53]}  b6 {[%clk 0:02:49]} 8. Bb2 {[%clk 0:02:53]}  Bb7 {[%clk 0:02:48]} 9. cxd5 {[%clk 0:02:53]}  exd5 {[%clk 0:02:44]} 10. Be2 {[%clk 0:02:41]}  Nbd7 {[%clk 0:02:43]} 11. O-O {[%clk 0:02:41]}  c5 {[%clk 0:02:41]} 12. bxc5 {[%clk 0:02:40]}  Nxc5 {[%clk 0:02:40]} 13. Nb5 {[%clk 0:02:25]}  a6 {[%clk 0:02:32]} 14. Nbd4 {[%clk 0:02:24]}  Rc8 {[%clk 0:02:32]} 15. Rac1 {[%clk 0:02:17]}  Re8 {[%clk 0:02:30]} 16. Qf5 {[%clk 0:02:10]}  b5 {[%clk 0:02:24]} 17. Nc2 {[%clk 0:01:20]}  g6 {[%clk 0:02:12]} 18. Qh3 {[%clk 0:01:18]}  Nb3 {[%clk 0:01:57]} 19. a4 {[%clk 0:00:55]}  Nxc1 {[%clk 0:01:55]} 20. Rxc1 {[%clk 0:00:55]}  b4 {[%clk 0:01:52]} 21. Ncd4 {[%clk 0:00:35]}  Rxc1+ {[%clk 0:01:50]} 22. Bxc1 {[%clk 0:00:36]}  Qc8 {[%clk 0:01:48]} 23. Bb2 {[%clk 0:00:35]}  Qxh3 {[%clk 0:01:48]} 24. gxh3 {[%clk 0:00:34]}  Rc8 {[%clk 0:01:43]} 25. a5 {[%clk 0:00:28]}  Ne4 {[%clk 0:01:41]} 26. Kf1 {[%clk 0:00:18]}  Bf6 {[%clk 0:01:33]} 27. Ke1 {[%clk 0:00:19]}  Nc5 {[%clk 0:01:31]} 28. d3 {[%clk 0:00:15]}  Na4 {[%clk 0:01:29]} 29. Ba1 {[%clk 0:00:08]}  Nc3 {[%clk 0:01:29]} 30. Bxc3 {[%clk 0:00:06]}  Rxc3 {[%clk 0:01:26]} 31. Kd2 {[%clk 0:00:06]}  Ra3 {[%clk 0:01:24]} 32. Bd1 {[%clk 0:00:04]}  Rxa5 {[%clk 0:01:24]} 33. Nb3 {[%clk 0:00:05]}  Ra2+ {[%clk 0:01:22]} 34. Bc2 {[%clk 0:00:05]}  Bc3+ {[%clk 0:01:22]} 35. Kc1 {[%clk 0:00:04]}  a5 {[%clk 0:01:20]} 36. d4 {[%clk 0:00:03]}  a4 {[%clk 0:01:20]} 37. Nc5 {[%clk 0:00:03]}  Bc6 {[%clk 0:01:19]} 0-1


[Site "https://www.chess.com"]

[Event "Titled Tuesday Blitz April 05 Late 2022"]
[White "Harish, Neeraj"]
[Black "Bilan, Danila"]
[WhiteFideId "30958130"]
[BlackFideId "24161918"]
[WhiteElo "1574"]
[BlackElo "2164"]
[Result "0-1"]
[Round "03"]
[TimeControl "180+1"]
[Date "2022.04.06"]
[WhiteClock "0:00:03"]
[BlackClock "0:00:11"]

1. e4 {[%clk 0:03:00]}  c6 {[%clk 0:02:59]} 2. d4 {[%clk 0:02:49]}  d5 {[%clk 0:02:59]} 3. e5 {[%clk 0:02:45]}  c5 {[%clk 0:02:54]} 4. dxc5 {[%clk 0:02:45]}  Nc6 {[%clk 0:02:54]} 5. f4 {[%clk 0:02:44]}  Bf5 {[%clk 0:02:46]} 6. c3 {[%clk 0:02:03]}  e6 {[%clk 0:02:40]} 7. b4 {[%clk 0:01:54]}  f6 {[%clk 0:02:37]} 8. Nf3 {[%clk 0:01:46]}  fxe5 {[%clk 0:02:07]} 9. fxe5 {[%clk 0:01:25]}  Be7 {[%clk 0:01:58]} 10. Bb5 {[%clk 0:01:22]}  Nh6 {[%clk 0:01:37]} 11. Bxh6 {[%clk 0:01:14]}  gxh6 {[%clk 0:01:38]} 12. O-O {[%clk 0:01:13]}  Qd7 {[%clk 0:01:20]} 13. Nd4 {[%clk 0:01:11]}  Bg6 {[%clk 0:01:15]} 14. Qa4 {[%clk 0:00:49]}  Rc8 {[%clk 0:01:01]} 15. Nd2 {[%clk 0:00:34]}  Bg5 {[%clk 0:00:57]} 16. N2f3 {[%clk 0:00:20]}  O-O {[%clk 0:00:56]} 17. Nxg5 {[%clk 0:00:19]}  hxg5 {[%clk 0:00:57]} 18. Bxc6 {[%clk 0:00:16]}  bxc6 {[%clk 0:00:54]} 19. Qd1 {[%clk 0:00:17]}  Rxf1+ {[%clk 0:00:46]} 20. Qxf1 {[%clk 0:00:17]}  Rf8 {[%clk 0:00:46]} 21. Qe2 {[%clk 0:00:18]}  h5 {[%clk 0:00:24]} 22. Rf1 {[%clk 0:00:16]}  Rxf1+ {[%clk 0:00:19]} 23. Qxf1 {[%clk 0:00:17]}  Qg7 {[%clk 0:00:14]} 24. Nxe6 {[%clk 0:00:11]}  Qxe5 {[%clk 0:00:11]} 25. Qf8+ {[%clk 0:00:10]}  Kh7 {[%clk 0:00:11]} 26. Qe7+ {[%clk 0:00:09]}  Kh6 {[%clk 0:00:11]} 27. Qf8+ {[%clk 0:00:03]}  Kh7 {[%clk 0:00:11]} 0-1


[Site "https://www.chess.com"]

[Event "Titled Tuesday Blitz April 05 Late 2022"]
[White "Hernandez Bermudez, Ulises Eduardo"]
[Black "Miszler, Levente"]
[WhiteFideId "3902510"]
[BlackFideId "763276"]
[WhiteElo "2056"]
[BlackElo "1966"]
[Result "0-1"]
[Round "03"]
[TimeControl "180+1"]
[Date "2022.04.06"]
[WhiteClock "0:00:02"]
[BlackClock "0:00:32"]

1. e4 {[%clk 0:02:59]}  e6 {[%clk 0:02:59]} 2. d4 {[%clk 0:02:58]}  d5 {[%clk 0:02:59]} 3. e5 {[%clk 0:02:58]}  c5 {[%clk 0:02:58]} 4. c3 {[%clk 0:02:58]}  Nc6 {[%clk 0:02:59]} 5. Nf3 {[%clk 0:02:58]}  Bd7 {[%clk 0:02:56]} 6. a3 {[%clk 0:02:57]}  c4 {[%clk 0:02:56]} 7. g3 {[%clk 0:02:55]}  Na5 {[%clk 0:02:49]} 8. Nbd2 {[%clk 0:02:53]}  Ne7 {[%clk 0:02:49]} 9. h4 {[%clk 0:02:51]}  Nc8 {[%clk 0:02:49]} 10. Bh3 {[%clk 0:02:51]}  Nb6 {[%clk 0:02:49]} 11. O-O {[%clk 0:02:51]}  Ba4 {[%clk 0:02:48]} 12. Qe2 {[%clk 0:02:48]}  Nb3 {[%clk 0:02:48]} 13. Nxb3 {[%clk 0:02:48]}  Bxb3 {[%clk 0:02:49]} 14. Ng5 {[%clk 0:02:42]}  Be7 {[%clk 0:02:46]} 15. f4 {[%clk 0:02:38]}  h6 {[%clk 0:02:43]} 16. Nf3 {[%clk 0:02:25]}  g6 {[%clk 0:02:35]} 17. h5 {[%clk 0:02:14]}  Rg8 {[%clk 0:02:24]} 18. Kh2 {[%clk 0:02:13]}  Qd7 {[%clk 0:02:18]} 19. Nd2 {[%clk 0:02:09]}  Ba4 {[%clk 0:02:14]} 20. hxg6 {[%clk 0:02:07]}  fxg6 {[%clk 0:02:13]} 21. Qg4 {[%clk 0:02:06]}  O-O-O {[%clk 0:02:12]} 22. Qxe6 {[%clk 0:02:03]}  Kb8 {[%clk 0:02:07]} 23. Qxd7 {[%clk 0:01:56]}  Nxd7 {[%clk 0:02:02]} 24. f5 {[%clk 0:01:45]}  gxf5 {[%clk 0:02:01]} 25. Rxf5 {[%clk 0:01:46]}  Rdf8 {[%clk 0:01:56]} 26. Nf3 {[%clk 0:01:44]}  Bc2 {[%clk 0:01:38]} 27. Rxf8+ {[%clk 0:01:33]}  Rxf8 {[%clk 0:01:39]} 28. Bf4 {[%clk 0:01:24]}  Kc7 {[%clk 0:01:37]} 29. e6+ {[%clk 0:01:21]}  Rxf4 {[%clk 0:01:33]} 30. gxf4 {[%clk 0:01:19]}  Nf6 {[%clk 0:01:33]} 31. Rg1 {[%clk 0:01:10]}  Nh5 {[%clk 0:01:23]} 32. f5 {[%clk 0:01:04]}  Bd6+ {[%clk 0:01:18]} 33. Ne5 {[%clk 0:01:04]}  Kd8 {[%clk 0:00:57]} 34. Rg6 {[%clk 0:00:57]}  Nf4 {[%clk 0:00:50]} 35. Rxh6 {[%clk 0:00:36]}  Nd3 {[%clk 0:00:50]} 36. f6 {[%clk 0:00:25]}  Nxe5 {[%clk 0:00:49]} 37. dxe5 {[%clk 0:00:23]}  Bxe5+ {[%clk 0:00:50]} 38. Kg1 {[%clk 0:00:23]}  d4 {[%clk 0:00:50]} 39. Rh8+ {[%clk 0:00:21]}  Kc7 {[%clk 0:00:49]} 40. e7 {[%clk 0:00:21]}  dxc3 {[%clk 0:00:42]} 41. bxc3 {[%clk 0:00:17]}  Bxf6 {[%clk 0:00:34]} 42. e8=Q {[%clk 0:00:17]}  Bxc3 {[%clk 0:00:34]} 43. Qd8+ {[%clk 0:00:01]}  Kc6 {[%clk 0:00:34]} 44. Bg2+ {[%clk 0:00:02]}  Kb5 {[%clk 0:00:32]} 45. Rh5+ {[%clk 0:00:03]}  Ka4 {[%clk 0:00:32]} 46. Qd7+ {[%clk 0:00:03]}  Kb3 {[%clk 0:00:33]} 47. Qb5+ {[%clk 0:00:02]}  Ka2 {[%clk 0:00:32]} 0-1


[Site "https://www.chess.com"]

[Event "Titled Tuesday Blitz April 05 Late 2022"]
[White "Horcajuelo Rocamora, Martin"]
[Black "Rosen, Eric"]
[WhiteFideId "24573027"]
[BlackFideId "2032562"]
[WhiteElo "1822"]
[BlackElo "2362"]
[Result "1-0"]
[Round "03"]
[TimeControl "180+1"]
[Date "2022.04.06"]
[WhiteClock "0:00:33"]
[BlackClock "0:00:09"]

1. e3 {[%clk 0:02:59]}  d5 {[%clk 0:02:00]} 2. Nf3 {[%clk 0:02:49]}  Nf6 {[%clk 0:01:46]} 3. b3 {[%clk 0:02:48]}  Bf5 {[%clk 0:01:44]} 4. Bb2 {[%clk 0:02:48]}  e6 {[%clk 0:01:44]} 5. d4 {[%clk 0:02:48]}  Nbd7 {[%clk 0:01:43]} 6. Bd3 {[%clk 0:02:48]}  Bd6 {[%clk 0:01:43]} 7. O-O {[%clk 0:02:47]}  c6 {[%clk 0:01:42]} 8. Ne5 {[%clk 0:02:48]}  Bxe5 {[%clk 0:01:39]} 9. dxe5 {[%clk 0:02:46]}  Ng4 {[%clk 0:01:39]} 10. Bxf5 {[%clk 0:02:38]}  exf5 {[%clk 0:01:37]} 11. Qf3 {[%clk 0:01:57]}  Ndxe5 {[%clk 0:00:45]} 12. Qxf5 {[%clk 0:01:54]}  Qd6 {[%clk 0:00:42]} 13. f4 {[%clk 0:01:41]}  g6 {[%clk 0:00:33]} 14. fxe5 {[%clk 0:01:33]}  Qe6 {[%clk 0:00:26]} 15. Qxe6+ {[%clk 0:01:30]}  fxe6 {[%clk 0:00:27]} 16. Rf3 {[%clk 0:01:29]}  Rf8 {[%clk 0:00:26]} 17. Nd2 {[%clk 0:01:19]}  Rxf3 {[%clk 0:00:25]} 18. Nxf3 {[%clk 0:01:19]}  Nxe3 {[%clk 0:00:26]} 19. c3 {[%clk 0:01:14]}  Kd7 {[%clk 0:00:22]} 20. Re1 {[%clk 0:01:13]}  Nf5 {[%clk 0:00:21]} 21. g4 {[%clk 0:01:13]}  Ne7 {[%clk 0:00:20]} 22. Kg2 {[%clk 0:01:11]}  h6 {[%clk 0:00:20]} 23. Ba3 {[%clk 0:01:09]}  Nc8 {[%clk 0:00:18]} 24. Nd4 {[%clk 0:01:08]}  b6 {[%clk 0:00:17]} 25. Rf1 {[%clk 0:01:08]}  c5 {[%clk 0:00:18]} 26. Nb5 {[%clk 0:01:08]}  Ke7 {[%clk 0:00:17]} 27. Rf6 {[%clk 0:01:00]}  a6 {[%clk 0:00:17]} 28. Nc7 {[%clk 0:01:00]}  Ra7 {[%clk 0:00:18]} 29. Nxe6 {[%clk 0:01:00]}  h5 {[%clk 0:00:12]} 30. Nxc5 {[%clk 0:01:00]}  hxg4 {[%clk 0:00:08]} 31. Ne6+ {[%clk 0:00:52]}  Ke8 {[%clk 0:00:07]} 32. Rf8+ {[%clk 0:00:51]}  Kd7 {[%clk 0:00:08]} 33. Nf4 {[%clk 0:00:48]}  Ra8 {[%clk 0:00:05]} 34. e6+ {[%clk 0:00:48]}  Kc7 {[%clk 0:00:05]} 35. Nxd5+ {[%clk 0:00:47]}  Kc6 {[%clk 0:00:03]} 36. e7 {[%clk 0:00:46]}  Nxe7 {[%clk 0:00:04]} 37. Nxe7+ {[%clk 0:00:46]}  Kb7 {[%clk 0:00:03]} 38. Rxa8 {[%clk 0:00:46]}  Kxa8 {[%clk 0:00:04]} 39. Nxg6 {[%clk 0:00:47]}  Kb7 {[%clk 0:00:05]} 40. Ne5 {[%clk 0:00:47]}  a5 {[%clk 0:00:04]} 41. Nxg4 {[%clk 0:00:48]}  Ka6 {[%clk 0:00:05]} 42. h4 {[%clk 0:00:48]}  a4 {[%clk 0:00:05]} 43. bxa4 {[%clk 0:00:47]}  Ka5 {[%clk 0:00:06]} 44. Bb4+ {[%clk 0:00:48]}  Kxa4 {[%clk 0:00:06]} 45. a3 {[%clk 0:00:48]}  Kb3 {[%clk 0:00:06]} 46. h5 {[%clk 0:00:48]}  Kc4 {[%clk 0:00:06]} 47. h6 {[%clk 0:00:49]}  Kb3 {[%clk 0:00:06]} 48. h7 {[%clk 0:00:49]}  b5 {[%clk 0:00:06]} 49. h8=Q {[%clk 0:00:50]}  Ka4 {[%clk 0:00:07]} 50. Ne3 {[%clk 0:00:45]}  Kb3 {[%clk 0:00:08]} 51. Nd1 {[%clk 0:00:42]}  Ka4 {[%clk 0:00:09]} 52. Qh7 {[%clk 0:00:34]}  Kb3 {[%clk 0:00:10]} 53. Qb1+ {[%clk 0:00:34]}  Kc4 {[%clk 0:00:09]} 54. Ne3# {[%clk 0:00:33]} 1-0


[Site "https://www.chess.com"]